bitfinex/quotes_ETHUSD_20240730
["timestamp","ask_amount","ask_price","bid_price","bid_amount"]
[1722347765222,3.5004657,3342.5,3342.0,0.18225278]
[1722347765477,3.5004657,3342.5,3342.0,3.17445278]
[1722347765626,6.4923057,3342.5,3341.9,2.99229]
[1722347765830,2.99211,3342.2,3342.1,0.18221779]
[1722347766140,2.99231,3341.9,3341.3,2.3934]
[1722347766342,2.99231,3341.9,3341.0,2.99303]
[1722347766343,2.99254,3341.7,3341.0,2.99303]
[1722347766552,2.99234,3341.9,3341.3,2.99279]
[1722347766926,2.992,3342.3,3341.6,5.38593]
[1722347767126,2.99222,3342.0,3341.6,2.3934]
[1722347767380,2.99223,3342.0,3341.6,2.3934]
[1722347767528,2.99227,3342.0,3341.5,2.99266]
[1722347767728,3.40698263,3342.3,3341.5,2.9926]
[1722347767979,2.99217,3342.1,3341.6,2.99255]
[1722347768175,3.40698263,3342.3,3341.6,2.99252]
[1722347768176,0.45649089,3342.2,3341.6,2.99252]
[1722347768472,0.45649089,3342.2,3341.7,0.18202901]
[1722347768777,1.15792627,3342.5,3341.3,5.38624]
[1722347768778,5.98474,3341.9,3341.3,5.38624]
[1722347768986,2.99216,3342.1,3341.8,0.18199402]
[1722347769273,2.992,3342.3,3341.4,0.05984814]
[1722347769431,2.99216,3342.1,3341.9,0.18195903]
[1722347769630,2.99214,3342.1,3341.6,2.99257]
[1722347769859,2.99214,3342.1,3341.3,2.3934]
[1722347769860,2.99214,3342.1,3342.0,0.181864]
[1722347770064,2.99214,3342.1,3341.3,2.3934]
[1722347770065,2.99225,3342.0,3341.5,2.99265]
[1722347770456,2.99238,3341.9,3341.3,5.38616]
[1722347770652,2.99238,3341.9,3341.4,2.99274]
[1722347770935,0.598421,3342.1,3341.4,2.99274]
[1722347770936,3.590611,3342.1,3341.4,2.99274]
[1722347771171,0.598421,3342.1,3341.3,2.3934]
[1722347771491,2.99247,3341.8,3341.3,2.3934]
[1722347771689,2.99225,3342.0,3341.5,2.99265]
[1722347771851,2.99209,3342.2,3341.4,0.05985278]
[1722347772174,2.99209,3342.2,3341.6,2.99257]
[1722347772370,1.15792627,3342.5,3341.3,2.3934]
[1722347772587,2.99216,3342.1,3341.3,2.3934]
[1722347772734,2.99199,3342.3,3341.3,2.3934]
[1722347773083,2.99199,3342.3,3341.4,2.99267]
[1722347773084,2.99203,3342.3,3341.4,2.99267]
[1722347773247,2.99217,3342.1,3341.4,2.99269]
[1722347773446,2.99227,3342.0,3341.4,2.99269]
[1722347773648,2.99217,3342.1,3341.4,2.99269]
[1722347773946,2.99199,3342.3,3341.7,2.99248]
[1722347774148,2.99205,3342.2,3341.7,2.99248]
[1722347774352,2.99205,3342.2,3341.6,2.99257]
[1722347774570,2.99205,3342.2,3341.6,5.98508]
[1722347774777,2.99205,3342.2,3341.6,2.99251]
[1722347775064,2.99223,3342.0,3341.4,2.99269]
[1722347775258,2.99231,3341.9,3341.3,2.3934]
[1722347775737,2.99217,3342.1,3341.5,2.99262]
[1722347775961,2.99217,3342.1,3341.6,2.99257]
[1722347776351,0.50223398,3342.2,3341.3,5.38619]
[1722347776352,2.99235,3341.9,3341.3,5.38619]
[1722347776607,2.99217,3342.1,3341.3,5.38619]
[1722347776879,2.99217,3342.1,3341.5,2.99261]
[1722347777373,2.99272,3341.5,3340.9,2.99315]
[1722347777573,2.99272,3341.5,3340.8,5.46175]
[1722347777876,2.99325,3340.9,3340.3,2.3155]
[1722347778078,2.99326,3340.9,3340.3,5.30924]
[1722347778280,2.99299,3341.2,3340.6,2.99341]
[1722347778482,3.591619,3341.1,3340.6,2.99341]
[1722347778687,2.99312,3341.0,3340.4,2.99359]
[1722347778885,2.99312,3341.0,3340.3,5.30918]
[1722347778886,0.598589,3341.1,3340.3,5.30918]
[1722347779059,2.99326,3340.9,3340.5,0.18200344]
[1722347779259,2.99326,3340.9,3340.4,0.18203846]
[1722347779467,2.99321,3340.9,3340.6,0.18196842]
[1722347779642,2.99321,3340.9,3340.5,0.18200344]
[1722347779974,2.9933,3340.8,3340.6,0.18196842]
[1722347780183,2.9933,3340.8,3340.3,2.3155]
[1722347780427,2.99321,3340.9,3340.7,0.18193341]
[1722347780581,2.99329,3340.8,3340.3,2.3155]
[1722347780783,2.99338,3340.7,3340.3,2.3155]
[1722347781025,2.99326,3340.9,3340.3,2.3155]
[1722347781225,2.99309,3341.1,3340.3,5.30922]
[1722347781427,10.46287,3341.3,3340.7,2.99332]
[1722347781831,10.46289,3341.3,3340.7,2.99333]
[1722347782042,10.46289,3341.3,3340.8,2.99328]
[1722347782204,2.99272,3341.5,3340.9,5.31375]
[1722347782400,2.99271,3341.5,3340.9,5.31373]
[1722347782597,2.99286,3341.3,3340.9,2.3206]
[1722347782813,2.99271,3341.5,3340.9,5.31375]
[1722347783033,3.0,3341.8,3341.0,3.05291146]
[1722347783236,3.0,3341.8,3341.2,2.9929]
[1722347783398,5.99244,3341.8,3341.2,2.9929]
[1722347783599,3.0,3341.8,3341.3,0.18190665]
[1722347783838,2.99211,3342.2,3341.5,2.3206]
[1722347784145,0.41579263,3342.4,3341.5,2.3206]
[1722347784146,2.99196,3342.3,3341.8,2.99234]
[1722347784355,3.5005157,3342.5,3341.9,0.05983911]
[1722347784504,3.5005157,3342.5,3341.9,3.23376577]
[1722347784699,3.5005157,3342.5,3341.9,0.24153577]
[1722347785052,3.5005157,3342.5,3341.9,3.23383577]
[1722347785248,3.0,3342.9,3342.2,2.99198]
[1722347785419,3.0,3342.9,3342.3,0.05983492]
[1722347785614,3.0,3342.9,3342.3,3.17354783]
[1722347785815,3.0,3342.9,3342.3,2.99189]
[1722347786134,3.0,3342.9,3342.4,0.18150278]
[1722347786648,3.0,3342.9,3342.5,2.99175]
[1722347786833,3.0,3342.9,3342.4,0.18150278]
[1722347787019,3.0,3342.9,3342.6,0.18129698]
[1722347787020,2.99155,3342.8,3342.6,0.18129698]
[1722347787226,3.0,3342.9,3342.0,2.3206]
[1722347787227,3.0,3342.9,3342.5,0.18133196]
[1722347787407,3.0,3342.9,3342.7,0.181262]
[1722347787611,3.0,3342.9,3342.6,0.18129698]
[1722347787808,3.0,3342.9,3342.8,0.18117018]
[1722347788015,2.9907,3343.7,3342.7,0.18120515]
[1722347788337,2.9907,3343.7,3342.8,0.18117018]
[1722347788338,2.99119,3343.2,3342.8,0.18117018]
[1722347788509,2.99119,3343.2,3342.6,2.99167]
[1722347788713,2.99128,3343.1,3342.7,0.18119568]
[1722347788920,2.99138,3343.0,3342.5,2.99171]
[1722347789137,2.99138,3343.0,3342.6,0.17518206]
[1722347789337,5.98278,3343.0,3342.6,0.17518206]
[1722347789555,2.99119,3343.2,3342.3,2.99189]
[1722347789740,0.299119,3343.1,3342.4,0.17483368]
[1722347790054,2.99119,3343.2,3342.6,2.99167]
[1722347790240,5.98241,3343.2,3342.6,2.99167]
[1722347790442,0.74951776,3343.6,3342.7,0.17472875]
[1722347790755,2.99142,3342.9,3342.3,2.99193]
[1722347790922,2.99142,3342.9,3342.4,2.99184]
[1722347791125,2.99126,3343.1,3342.4,3.22646352]
[1722347791682,2.99126,3343.1,3342.5,2.99172]
[1722347791962,2.99126,3343.1,3342.6,0.17476373]
[1722347792265,2.99126,3343.1,3342.4,2.99178]
[1722347792434,2.9911,3343.3,3342.7,0.17472875]
[1722347792629,3.96425378,3343.3,3342.4,2.99181]
[1722347792955,3.96425378,3343.3,3342.5,3.05151984]
[1722347792956,2.99125,3343.1,3342.5,3.05151984]
[1722347793160,2.99125,3343.1,3342.6,3.16642373]
[1722347793545,3.96425378,3343.3,3342.6,0.17476373]
[1722347793744,2.99128,3343.1,3342.5,2.99175]
[1722347794064,0.97315378,3343.3,3342.6,0.17476373]
[1722347794217,2.99149,3342.9,3342.6,0.17476373]
[1722347794417,5.9826,3343.1,3342.4,2.99185]
[1722347794618,5.9826,3343.1,3342.7,0.17472875]
[1722347794916,2.99202,3342.3,3342.0,0.2]
[1722347795134,2.99213,3342.1,3342.0,0.2]
[1722347795365,2.99186,3342.4,3342.0,0.2]
[1722347795554,2.99186,3342.4,3342.0,0.4]
[1722347795755,0.299186,3342.4,3342.0,0.4]
[1722347795962,2.99203,3342.3,3342.0,0.4]
[1722347796118,0.299186,3342.4,3342.0,0.4]
[1722347796321,2.99213,3342.1,3342.0,0.4]
[1722347796626,2.99205,3342.2,3342.0,0.4]
[1722347797082,2.99182,3342.5,3342.0,0.4]
[1722347797562,8.30066,3342.1,3342.0,0.4]
[1722347797775,2.99327,3340.9,3340.2,2.99374]
[1722347797915,2.99327,3340.9,3339.8,37.3741]
[1722347797916,2.99327,3340.9,3339.8,2.3741]
[1722347798117,2.99327,3340.9,3340.1,2.99385]
[1722347798340,2.99334,3340.8,3340.2,2.99381]
[1722347798634,2.99308,3341.1,3340.4,2.99365]
[1722347798635,2.9932,3340.9,3340.4,2.99365]
[1722347798846,2.99308,3341.1,3340.4,2.99365]
[1722347799184,2.99308,3341.1,3340.5,0.16428085]
[1722347799322,2.99312,3341.0,3340.5,0.16428085]
[1722347799527,2.99321,3340.9,3340.5,0.16428085]
[1722347799729,2.9929,3341.3,3340.5,0.16428085]
[1722347799968,2.9929,3341.3,3340.5,3.15779085]
[1722347799969,2.99307,3341.1,3340.5,3.15779085]
[1722347800172,2.99286,3341.3,3340.7,2.99335]
[1722347800328,2.99286,3341.3,3340.8,0.16438949]
[1722347800534,2.99294,3341.2,3340.8,0.16438949]
[1722347800861,2.99311,3341.0,3340.8,0.16438949]
[1722347801028,5.98629,3341.0,3340.8,0.16438949]
[1722347801370,2.99311,3341.0,3340.3,2.99371]
[1722347801553,2.99311,3341.0,3340.4,2.99359]
[1722347801764,2.9932,3340.9,3340.1,2.99387]
[1722347801925,2.99337,3340.8,3339.8,2.3741]
[1722347802130,2.99352,3340.6,3340.1,2.99389]
[1722347802430,2.99337,3340.8,3340.2,2.99379]
[1722347802632,2.99336,3340.8,3340.2,2.99379]
[1722347802866,2.99338,3340.7,3340.2,2.99379]
[1722347803074,2.99329,3340.9,3340.3,2.99373]
[1722347803376,2.99317,3341.0,3339.8,2.3741]
[1722347803536,2.99329,3340.8,3339.9,0.23741]
[1722347803740,2.99329,3340.8,3340.2,2.99376]
[1722347804044,2.99317,3341.0,3340.5,2.99355]
[1722347804242,2.99317,3341.0,3340.3,2.99373]
[1722347804441,2.99326,3340.9,3340.3,2.99368]
[1722347804643,2.99325,3340.9,3340.2,2.99374]
[1722347804862,2.99325,3340.9,3340.3,2.99373]
[1722347805356,2.9933,3340.8,3340.3,2.99373]
[1722347805539,2.9933,3340.8,3340.3,2.99367]
[1722347805734,2.99308,3341.1,3340.3,2.99365]
[1722347805933,2.99321,3340.9,3340.3,2.99365]
[1722347806165,2.99338,3340.7,3340.1,2.99384]
[1722347806482,2.99321,3340.9,3340.3,2.99373]
[1722347806633,0.977198,3341.4,3340.1,2.99384]
[1722347806836,2.99344,3340.7,3340.1,5.9877]
[1722347807075,2.99324,3340.9,3340.3,2.99373]
[1722347807263,2.99324,3340.9,3340.4,2.99364]
[1722347807433,2.99307,3341.1,3340.5,2.99351]
[1722347807634,2.99313,3341.0,3340.5,2.99351]
[1722347807883,2.99307,3341.1,3340.5,2.99351]
[1722347808093,0.4586118,3341.3,3340.3,2.99368]
[1722347808094,2.99326,3340.9,3340.3,2.99367]
[1722347808382,2.9933,3340.8,3340.3,2.99367]
[1722347808682,2.99321,3340.9,3340.3,2.99367]
[1722347808878,2.9889709,3341.1,3340.5,2.99351]
[1722347809062,2.99289,3341.3,3340.7,2.99333]
[1722347809264,2.9924,3341.8,3340.3,2.99368]
[1722347809265,2.99317,3341.0,3340.3,2.99368]
[1722347809467,2.99303,3341.1,3340.5,2.99349]
[1722347810843,10.47,3341.7,3340.5,2.99349]
[1722347810844,2.99287,3341.3,3340.7,2.99336]
[1722347811245,2.993,3341.2,3340.7,2.99336]
[1722347811775,13.46254,3341.7,3340.9,2.99315]
[1722347812093,2.99276,3341.4,3340.8,5.98644]
[1722347812288,2.99288,3341.3,3340.8,2.99321]
[1722347812440,1.583654,3341.6,3340.7,2.2584]
[1722347812646,2.99293,3341.2,3340.7,2.2584]
[1722347812943,2.99272,3341.5,3340.7,2.2584]
[1722347813153,2.99284,3341.4,3340.8,2.99321]
[1722347813354,2.99293,3341.2,3340.9,0.16469699]
[1722347813558,2.99293,3341.2,3340.7,5.25178]
[1722347813755,2.99293,3341.2,3340.8,0.164732]
[1722347814043,5.98567,3341.4,3340.8,0.164732]
[1722347814346,2.99285,3341.3,3340.8,0.164732]
[1722347815348,2.99308,3341.1,3340.8,0.164732]
[1722347815552,2.99308,3341.1,3340.6,2.99346]
[1722347815784,2.99295,3341.2,3340.7,3.15807702]
[1722347815967,2.99272,3341.5,3340.8,2.99324]
[1722347816269,2.9928,3341.4,3340.9,0.16469699]
[1722347816470,5.99254,3341.7,3340.9,3.15784699]
[1722347816761,5.99254,3341.7,3340.9,3.3089347]
[1722347816954,2.99262,3341.6,3341.0,2.99311]
[1722347817349,2.99262,3341.6,3341.1,3.15763697]
[1722347818021,5.99249,3341.7,3341.1,3.15758697]
[1722347818223,5.99249,3341.7,3341.1,3.15757697]
[1722347818528,2.99267,3341.5,3341.0,2.9931]
[1722347818729,2.99267,3341.5,3341.2,0.16459197]
[1722347819221,5.99249,3341.7,3341.1,2.99298]
[1722347819724,5.99249,3341.7,3341.3,2.99278]
[1722347819725,3.0,3341.7,3341.3,2.99278]
[1722347820020,3.0,3341.7,3341.4,0.16436166]
[1722347820021,2.99262,3341.6,3341.4,0.16436166]
[1722347820383,2.99266,3341.5,3340.7,2.99331]
[1722347820581,5.98546,3341.5,3340.9,2.99318]
[1722347820782,2.99271,3341.5,3341.0,0.16450168]
[1722347821017,2.9929,3341.3,3340.8,2.99324]
[1722347821194,2.9929,3341.3,3340.9,0.16453669]
[1722347821393,0.898517,3341.6,3340.9,0.16453669]
[1722347821394,2.99294,3341.2,3340.9,0.16453669]
[1722347821631,3.591582,3341.2,3340.9,0.16453669]
[1722347821942,0.598572,3341.2,3340.5,2.3291]
[1722347822099,2.9929,3341.3,3340.7,2.99332]
[1722347822427,5.3668,3341.4,3340.8,0.16445857]
[1722347822428,2.99316,3341.0,3340.8,0.16445857]
[1722347822783,2.99316,3341.0,3340.5,5.32266]
[1722347822985,2.99316,3341.0,3340.6,0.16460402]
[1722347823442,2.374,3341.4,3340.5,2.99354]
[1722347823443,2.99299,3341.2,3340.5,2.99354]
[1722347823589,2.99316,3341.0,3340.7,0.16457215]
[1722347823791,2.99316,3341.0,3340.5,2.99354]
[1722347823993,2.99321,3340.9,3340.3,2.99367]
[1722347824204,2.99321,3340.9,3340.4,2.99364]
[1722347824418,2.9931,3341.1,3340.5,3.15819218]
[1722347824632,2.99321,3340.9,3340.5,0.16464218]
[1722347824800,2.99329,3340.8,3340.5,0.16464218]
[1722347824997,5.98648,3340.9,3340.3,2.99367]
[1722347825240,5.98648,3340.9,3340.4,3.1583172]
[1722347825241,2.99321,3340.9,3340.4,3.1583172]
[1722347825940,2.99344,3340.7,3340.4,0.1646772]
[1722347826276,2.99344,3340.7,3340.2,2.99382]
[1722347826560,2.99321,3340.9,3340.2,2.99382]
[1722347826561,2.99329,3340.8,3340.5,0.16464218]
[1722347826745,2.374,3341.4,3340.1,2.3487]
[1722347826746,2.99319,3341.0,3340.1,2.3487]
[1722347827075,2.99317,3341.0,3340.3,2.99369]
[1722347827241,2.99325,3340.9,3340.3,2.99369]
[1722347827449,2.99332,3340.8,3340.4,0.1646772]
[1722347827747,0.3272517,3341.3,3340.4,3.1583072]
[1722347827748,2.99317,3341.0,3340.4,3.1583072]
[1722347827952,2.99321,3340.9,3340.4,3.1583072]
[1722347828167,2.99342,3340.7,3340.4,0.1646772]
[1722347828528,2.99342,3340.7,3340.2,2.99377]
[1722347828860,6.585188,3340.9,3340.3,2.99372]
[1722347829071,3.591898,3340.9,3340.3,3.15840223]
[1722347829303,2.99326,3340.9,3340.3,3.15840223]
[1722347829563,2.99326,3340.9,3340.3,3.15838223]
[1722347829884,2.99307,3341.1,3340.3,3.15837223]
[1722347829885,2.99308,3341.1,3340.3,3.15837223]
[1722347830031,0.3272517,3341.3,3340.3,0.16471223]
[1722347830032,2.99311,3341.0,3340.3,0.16471223]
[1722347830349,2.99311,3341.0,3340.5,2.99354]
[1722347830782,2.99312,3341.0,3340.6,0.16475173]
[1722347830931,2.99312,3341.0,3340.5,2.99356]
[1722347831332,2.99312,3341.0,3340.6,0.16475173]
[1722347832142,2.99299,3341.2,3340.6,0.16475173]
[1722347832457,2.99303,3341.1,3340.6,2.99347]
[1722347832653,2.99303,3341.1,3340.7,0.16471671]
[1722347832857,2.99312,3341.0,3340.7,0.16471671]
[1722347833106,2.99305,3341.1,3340.7,0.16471671]
[1722347833226,2.99289,3341.3,3340.7,3.15807671]
[1722347833431,2.99306,3341.1,3340.7,0.16471671]
[1722347833666,3.3820307,3341.3,3340.7,2.99334]
[1722347833667,0.3891407,3341.3,3340.7,2.99334]
[1722347833871,2.99285,3341.3,3340.8,3.1579717]
[1722347834071,5.99253,3341.7,3340.9,2.54636324]
[1722347834271,5.99253,3341.7,3341.1,2.99295]
[1722347834457,5.99253,3341.7,3341.0,2.99311]
[1722347834657,2.99271,3341.5,3341.2,0.16454166]
[1722347834970,2.99271,3341.5,3340.9,2.4865]
[1722347835474,2.99271,3341.5,3341.0,0.16461167]
[1722347835677,3.891266,3341.5,3341.0,0.16461167]
[1722347835878,2.99289,3341.3,3341.1,0.15908961]
[1722347836234,2.99289,3341.3,3340.8,2.99323]
[1722347836464,5.98581,3341.3,3341.2,0.1590546]
[1722347836672,2.99306,3341.1,3340.1,2.3319]
[1722347836915,2.99315,3341.0,3340.4,2.99359]
[1722347837120,2.9932,3340.9,3340.2,0.15940476]
[1722347837280,2.99343,3340.7,3340.5,0.15929969]
[1722347837476,2.99313,3341.0,3340.1,2.3319]
[1722347837678,2.99366,3340.4,3339.7,2.99424]
[1722347837924,2.99369,3340.4,3339.8,2.99418]
[1722347838126,2.9939,3340.2,3339.6,5.34475]
[1722347838323,2.99324,3340.9,3339.6,2.3504]
[1722347838491,2.99396,3340.1,3339.6,2.3504]
[1722347838678,2.99406,3340.0,3339.6,2.3504]
[1722347839083,2.99396,3340.1,3339.6,2.3504]
[1722347839715,2.99401,3340.0,3339.4,2.99453]
[1722347839915,5.98808,3340.0,3339.4,2.99453]
[1722347840118,2.99401,3340.0,3339.4,2.99453]
[1722347840536,2.9941,3339.9,3339.4,2.99453]
[1722347840688,2.9942,3339.8,3339.3,7.37]
[1722347841025,2.99438,3339.6,3339.1,5.30867]
[1722347841236,2.9942,3339.8,3339.2,2.99464]
[1722347841523,2.9942,3339.8,3339.1,5.30867]
[1722347842032,2.99396,3340.1,3339.5,2.9944]
[1722347842419,2.99396,3340.1,3339.3,5.98914]
[1722347842420,2.99407,3340.0,3339.3,5.98914]
[1722347842751,2.99407,3340.0,3339.3,2.99455]
[1722347842896,2.99392,3340.2,3339.5,2.99438]
[1722347843245,2.99397,3340.1,3339.4,2.99449]
[1722347843394,2.99397,3340.1,3339.6,0.15998278]
[1722347843395,3.293367,3340.1,3339.6,0.15998278]
[1722347843589,3.293367,3340.1,3339.4,2.99449]
[1722347843590,2.99417,3339.9,3339.4,2.99454]
[1722347843795,3.293407,3340.1,3339.4,2.99454]
[1722347844018,2.99401,3340.0,3339.5,0.16001783]
[1722347844426,0.299397,3340.1,3339.5,0.16001783]
[1722347844613,2.99428,3339.7,3339.2,2.99467]
[1722347844823,2.99427,3339.8,3339.3,0.16008791]
[1722347845141,2.99405,3340.0,3339.4,2.99454]
[1722347845315,2.99415,3339.9,3339.4,3.15487271]
[1722347845899,2.99398,3340.1,3339.4,3.15487271]
[1722347845900,2.99398,3340.1,3339.4,0.16033271]
[1722347846143,3.293358,3340.1,3339.1,2.3139]
[1722347846445,2.99396,3340.1,3339.5,2.99438]
[1722347846659,2.99405,3340.0,3339.6,0.16026263]
[1722347847158,2.99396,3340.1,3339.6,0.16026263]
[1722347847313,2.4388,3340.5,3339.6,0.16026263]
[1722347847639,2.99417,3339.9,3339.3,2.99457]
[1722347847941,0.54388,3340.4,3339.1,5.30865]
[1722347847942,3.53755,3340.4,3339.1,5.30865]
[1722347848255,2.99418,3339.9,3339.3,2.99463]
[1722347848544,2.99418,3339.9,3339.3,2.99459]
[1722347848747,2.99418,3339.9,3339.4,0.16033271]
[1722347848945,0.597635,3340.3,3339.4,0.16033271]
[1722347848946,2.99424,3339.8,3339.4,0.16033271]
[1722347849324,2.99424,3339.8,3339.3,2.99463]
[1722347849645,2.99428,3339.7,3339.4,0.16033271]
[1722347850142,0.597635,3340.3,3338.9,10.36495]
[1722347850347,2.99409,3340.0,3339.5,0.16029767]
[1722347850503,2.99453,3339.5,3338.9,10.36495]
[1722347851141,2.99455,3339.4,3338.9,10.36495]
[1722347851356,2.99478,3339.2,3338.9,7.37]
[1722347852071,2.99455,3339.4,3338.9,7.37]
[1722347852276,2.99459,3339.4,3338.9,7.37]
[1722347852576,2.99468,3339.3,3338.9,7.37]
[1722347853437,2.9944,3339.6,3338.9,7.37]
[1722347853634,2.99468,3339.3,3338.9,7.37]
[1722347854171,2.99473,3339.2,3339.0,0.16067108]
[1722347854373,2.99455,3339.4,3339.0,0.16067108]
[1722347854972,2.99464,3339.3,3338.7,2.99513]
[1722347855173,2.3925,3339.7,3339.1,0.16063603]
[1722347855375,2.3925,3339.7,3338.7,2.99513]
[1722347855376,2.99472,3339.3,3338.7,2.99513]
[1722347855535,2.99474,3339.2,3338.7,2.99513]
[1722347856038,2.99474,3339.2,3338.5,2.9970591]
[1722347856039,2.99491,3339.0,3338.5,2.9970591]
[1722347856231,2.99483,3339.1,3338.5,0.0017891]
[1722347856550,2.99483,3339.1,3338.5,2.9970891]
[1722347856736,2.99492,3339.0,3338.5,2.9970891]
[1722347857143,2.99504,3338.9,3338.5,0.0017891]
[1722347857584,2.99495,3339.0,3338.5,2.9970991]
[1722347858148,2.99495,3339.0,3338.5,2.9970791]
[1722347858943,2.99474,3339.2,3338.6,2.99522]
[1722347859171,2.99474,3339.2,3338.5,2.9971391]
[1722347859371,2.99495,3339.0,3338.5,2.9971391]
[1722347859785,2.99495,3339.0,3338.5,0.0017891]
[1722347859969,2.99495,3339.0,3338.5,2.9971191]
[1722347860890,2.99495,3339.0,3338.5,2.9970691]
[1722347861489,2.99476,3339.2,3338.7,2.99517]
[1722347861691,0.538671,3339.6,3338.8,2.99508]
[1722347861997,3.0,3340.0,3338.8,0.16087018]
[1722347862159,2.99464,3339.3,3338.8,3.15595018]
[1722347862598,2.99464,3339.3,3338.8,0.16087018]
[1722347863092,2.9945,3339.5,3338.9,2.99498]
[1722347863392,3.0,3340.0,3338.9,0.61509102]
[1722347863565,2.99451,3339.5,3339.0,0.16095737]
[1722347863772,2.9947,3339.3,3339.0,0.16095737]
[1722347863958,2.9947,3339.3,3338.7,2.99517]
[1722347864157,2.9947,3339.3,3339.1,0.16092232]
[1722347864487,2.99487,3339.1,3338.5,0.0017891]
[1722347864792,2.99486,3339.1,3338.6,2.99526]
[1722347865103,2.99491,3339.0,3338.5,2.9971191]
[1722347865460,2.99491,3339.0,3338.5,2.9970991]
[1722347865662,2.99473,3339.2,3338.5,2.9970991]
[1722347865858,2.99484,3339.1,3338.5,2.9970991]
[1722347866103,2.99484,3339.1,3338.6,2.99526]
[1722347866402,2.99491,3339.0,3338.5,0.0017891]
[1722347866609,2.99478,3339.2,3338.5,2.9971391]
[1722347866809,2.99491,3339.0,3338.5,2.9971391]
[1722347867317,2.995,3338.9,3338.5,0.0017891]
[1722347867658,2.99511,3338.8,3338.5,0.0017891]
[1722347867861,3.594112,3338.8,3338.5,0.0017891]
[1722347868106,2.99522,3338.7,3338.5,0.0017891]
[1722347868680,2.99526,3338.6,3338.5,0.0017891]
[1722347868908,2.99511,3338.8,3338.5,0.0017891]
[1722347869313,2.99524,3338.7,3338.5,0.0017891]
[1722347869469,2.99514,3338.8,3338.5,0.0017891]
[1722347869819,2.99526,3338.6,3338.5,0.0017891]
[1722347869980,3.5943,3338.6,3338.5,0.0017891]
[1722347870187,6.58956,3338.6,3338.5,0.0017891]
[1722347871482,6.58956,3338.6,3338.5,0.15780269]
[1722347871701,6.58956,3338.6,3338.5,0.0017891]
[1722347872005,6.58956,3338.6,3338.5,0.15780269]
[1722347872178,6.58956,3338.6,3338.5,0.0017891]
[1722347872378,6.58956,3338.6,3338.5,0.15780269]
[1722347872563,6.58956,3338.6,3338.5,0.0017891]
[1722347875137,7.13956,3338.6,3338.5,0.0017891]
[1722347878052,6.58956,3338.6,3338.5,0.0017891]
[1722347881140,9.58482,3338.6,3338.5,0.0017891]
[1722347882321,6.58956,3338.6,3338.5,0.0017891]
[1722347883559,6.58956,3338.6,3338.5,0.1582317]
[1722347883723,2.99518,3338.7,3338.5,0.0017891]
[1722347884065,5.99052,3338.6,3338.5,0.0017891]
[1722347884424,2.99522,3338.7,3338.5,0.0017891]
[1722347884619,2.99514,3338.8,3338.5,0.15825989]
[1722347884934,0.5086957,3338.9,3338.5,2.9971291]
[1722347885287,0.5086957,3338.9,3338.5,0.2017891]
[1722347885459,2.99519,3338.7,3338.5,0.2017891]
[1722347885981,2.99526,3338.6,3338.5,0.2017891]
[1722347886133,2.99521,3338.7,3338.5,0.2017891]
[1722347886335,2.99526,3338.6,3338.5,0.2017891]
[1722347886528,5.99052,3338.6,3338.5,0.2017891]
[1722347887767,2.99526,3338.6,3338.5,0.2017891]
[1722347888662,2.99526,3338.6,3338.5,0.35822857]
[1722347889019,2.99526,3338.6,3338.5,0.55822857]
[1722347889221,6.51065193,3338.6,3338.5,0.55822857]
[1722347889444,6.51065193,3338.6,3338.5,0.4017891]
[1722347889869,10.05591193,3338.6,3338.5,0.4017891]
[1722347890020,7.06065193,3338.6,3338.5,0.4017891]
[1722347890219,6.51065193,3338.6,3338.5,0.4017891]
[1722347891721,7.06065193,3338.6,3338.5,0.4017891]
[1722347892976,3.51539193,3338.6,3338.5,0.4017891]
[1722347893123,6.51065193,3338.6,3338.5,0.6017891]
[1722347893667,3.51539193,3338.6,3338.5,0.6017891]
[1722347893979,2.20605927,3338.9,3338.5,0.6017891]
[1722347894140,0.5086957,3338.9,3338.5,0.6017891]
[1722347894477,0.5086957,3338.9,3338.6,2.99523]
[1722347894620,0.5086957,3338.9,3338.7,0.15123978]
[1722347894827,0.5086957,3338.9,3338.5,0.6017891]
[1722347895028,0.5086957,3338.9,3338.5,3.5971091]
[1722347895337,0.5086957,3338.9,3338.6,0.15127484]
[1722347895748,0.5086957,3338.9,3338.6,3.14652484]
[1722347895959,0.5086957,3338.9,3338.7,2.99512]
[1722347896431,0.5086957,3338.9,3338.8,0.15113304]
[1722347897769,0.5086957,3338.9,3338.6,2.99521]
[1722347898091,0.5086957,3338.9,3338.8,0.15113304]
[1722347898225,0.5086957,3338.9,3338.7,0.1511681]
[1722347898226,3.5037057,3338.9,3338.7,0.1511681]
[1722347898432,2.99508,3338.8,3338.5,0.8017891]
[1722347898733,2.99508,3338.8,3338.6,0.15110344]
[1722347899134,0.5086957,3338.9,3338.6,0.15110344]
[1722347899887,0.5086957,3338.9,3338.6,3.14631344]
[1722347900082,0.5086957,3338.9,3338.6,3.84664323]
[1722347900377,0.5086957,3338.9,3338.6,3.14631344]
[1722347900586,0.5086957,3338.9,3338.6,0.15110344]
[1722347900735,0.5086957,3338.9,3338.6,3.14635344]
[1722347900931,0.5086957,3338.9,3338.6,0.15110344]
[1722347901178,3.5037057,3338.9,3338.6,0.15110344]
[1722347901540,3.85410627,3338.9,3338.6,0.15110344]
[1722347901936,5.99034,3338.7,3338.6,0.15110344]
[1722347902632,6.84917627,3338.9,3338.6,0.15110344]
[1722347902856,2.99509,3338.8,3338.5,1.0017891]
[1722347903056,2.99509,3338.8,3338.6,0.15101305]
[1722347903266,3.85408627,3338.9,3338.6,0.15101305]
[1722347903431,2.99509,3338.8,3338.6,0.15101305]
[1722347904065,3.34539057,3338.9,3338.6,0.15101305]
[1722347904263,2.99502,3338.9,3338.6,0.15101305]
[1722347904562,2.99517,3338.7,3338.6,0.15101305]
[1722347904938,2.99509,3338.8,3338.6,0.15101305]
[1722347905143,2.99517,3338.7,3338.6,0.15101305]